Workbook

Sheet 迷路
B1: =NOW() -> 2021-02-25T10:31:47.180 | J1: 【迷路に挑戦！】
J2: =補助!B28&"" -> ※開始ボタンで挑戦を始めましょう。
B4: ※最大50コマまで | J4: G
B5: 縦コマ数 | C5: 横コマ数 | E5: 最短移動数
B6: 30 | C6: 50 | E6: =IF(補助!B31="","",補助!B31) -> 316
B9: 開始(S) | C9: 終了(G) | E9: 実移動数
B10: 右下 | C10: 左上 | E10: =IF(補助!C31="","",補助!C31) -> 
B14: 開始時刻 | D14: =IF(補助!B34="","",補助!B34) -> 
B15: 終了時刻 | D15: =IF(補助!C34="","",補助!C34) -> 
B16: 所要時間 | D16: =IF(D15="","",D15-D14) -> 
B25: =補助!B36&"" -> 
B26: 株式会社つくばＩＴパートナー
B27: Copyright © 2017 Tsukuba IT Partner Co., Ltd. All Rights Reserved.
BG33: S

Sheet 判定 (hidden)
J4: 1001 | K4: 1001 | L4: 1001 | M4: 1002 | N4: 1002 | O4: 1002 | P4: 1003 | Q4: 1003 | R4: 1003 | S4: 1003 | T4: 1003 | U4: 1003 | V4: 1003 | W4: 1004 | X4: 1004 | Y4: 1004 | Z4: 1004 | AA4: 1004 | AB4: 1004 | AC4: 1004 | AD4: 1004 | AE4: 1004 | AF4: 1004 | AG4: 1005 | AH4: 1005 | AI4: 1005 | AJ4: 1005 | AK4: 1005 | AL4: 1005 | AM4: 1006 | AN4: 1007 | AO4: 1007 | AP4: 1008 | AQ4: 1004 | AR4: 1004 | AS4: 1004 | AT4: 1004 | AU4: 1009 | AV4: 1010 | AW4: 1010 | AX4: 1011 | AY4: 1011 | AZ4: 1011 | BA4: 1011 | BB4: 1009 | BC4: 1009 | BD4: 1012 | BE4: 1012 | BF4: 1012 | BG4: 1013
J5: ○ | K5: 1014 | L5: 1001 | M5: 1001 | N5: 1002 | O5: 1002 | P5: 1015 | Q5: 1003 | R5: 1003 | S5: 1016 | T5: 1016 | U5: 1016 | V5: 1003 | W5: 1003 | X5: 1004 | Y5: 1004 | Z5: 1017 | AA5: 1017 | AB5: 1018 | AC5: 1018 | AD5: 1018 | AE5: 1004 | AF5: 1004 | AG5: 1019 | AH5: 1019 | AI5: 1019 | AJ5: 1005 | AK5: 1005 | AL5: 1005 | AM5: 1006 | AN5: 1006 | AO5: 1007 | AP5: 1004 | AQ5: 1004 | AR5: 1020 | AS5: 1020 | AT5: 1004 | AU5: 1009 | AV5: 1009 | AW5: 1010 | AX5: 1010 | AY5: 1010 | AZ5: 1011 | BA5: 1011 | BB5: 1009 | BC5: 1009 | BD5: 1009 | BE5: 1021 | BF5: 1012 | BG5: 1013
J6: ○ | K6: ○ | L6: ○ | M6: 1001 | N6: 1001 | O6: 1015 | P6: 1015 | Q6: 1003 | R6: 1003 | S6: 1003 | T6: 1016 | U6: 1016 | V6: 1003 | W6: 1003 | X6: 1017 | Y6: 1017 | Z6: 1017 | AA6: 1017 | AB6: 1022 | AC6: 1018 | AD6: 1018 | AE6: 1004 | AF6: 1019 | AG6: 1019 | AH6: 1019 | AI6: 1019 | AJ6: 1023 | AK6: 1023 | AL6: 1023 | AM6: 1006 | AN6: 1006 | AO6: 1007 | AP6: 1004 | AQ6: 1004 | AR6: 1004 | AS6: 1004 | AT6: 1004 | AU6: 1009 | AV6: 1009 | AW6: 1010 | AX6: 1010 | AY6: 1010 | AZ6: 1010 | BA6: 1010 | BB6: 1009 | BC6: 1009 | BD6: 1009 | BE6: 1021 | BF6: 1012 | BG6: 1013
J7: ○ | K7: ○ | L7: ○ | M7: ○ | N7: 1001 | O7: ○ | P7: ○ | Q7: 1003 | R7: 1003 | S7: 1003 | T7: 1016 | U7: 1016 | V7: 1003 | W7: 1003 | X7: 1003 | Y7: 1003 | Z7: 1022 | AA7: 1022 | AB7: 1022 | AC7: 1024 | AD7: 1024 | AE7: 1004 | AF7: 1004 | AG7: 1004 | AH7: 1025 | AI7: 1023 | AJ7: 1023 | AK7: 1023 | AL7: 1006 | AM7: 1006 | AN7: 1026 | AO7: 1007 | AP7: 1004 | AQ7: 1004 | AR7: 1004 | AS7: 1004 | AT7: 1027 | AU7: 1009 | AV7: 1010 | AW7: 1010 | AX7: 1010 | AY7: 1010 | AZ7: 1010 | BA7: 1010 | BB7: 1009 | BC7: 1009 | BD7: 1009 | BE7: 1021 | BF7: 1012 | BG7: 1012
J8: 1028 | K8: 1028 | L8: 1028 | M8: ○ | N8: 1001 | O8: ○ | P8: ○ | Q8: 1029 | R8: 1003 | S8: 1003 | T8: 1016 | U8: 1016 | V8: 1003 | W8: 1003 | X8: 1003 | Y8: 1003 | Z8: 1022 | AA8: 1022 | AB8: 1030 | AC8: 1030 | AD8: 1024 | AE8: 1004 | AF8: 1004 | AG8: 1004 | AH8: 1023 | AI8: 1023 | AJ8: 1023 | AK8: 1023 | AL8: 1006 | AM8: 1006 | AN8: 1026 | AO8: 1007 | AP8: 1004 | AQ8: 1004 | AR8: 1004 | AS8: 1031 | AT8: 1009 | AU8: 1009 | AV8: 1009 | AW8: 1009 | AX8: 1009 | AY8: 1009 | AZ8: 1009 | BA8: 1009 | BB8: 1009 | BC8: 1009 | BD8: 1009 | BE8: 1021 | BF8: 1021 | BG8: 1012
J9: 1028 | K9: 1028 | L9: 1028 | M9: ○ | N9: ○ | O9: ○ | P9: ○ | Q9: ○ | R9: 1032 | S9: 1022 | T9: 1022 | U9: 1022 | V9: 1022 | W9: 1022 | X9: 1022 | Y9: 1022 | Z9: 1022 | AA9: 1022 | AB9: 1030 | AC9: 1030 | AD9: 1024 | AE9: 1024 | AF9: 1024 | AG9: 1004 | AH9: 1023 | AI9: 1023 | AJ9: 1023 | AK9: 1006 | AL9: 1006 | AM9: 1006 | AN9: 1007 | AO9: 1007 | AP9: 1004 | AQ9: 1004 | AR9: 1004 | AS9: 1031 | AT9: 1009 | AU9: 1009 | AV9: 1009 | AW9: 1033 | AX9: 1033 | AY9: 1033 | AZ9: 1033 | BA9: 1033 | BB9: 1012 | BC9: 1012 | BD9: 1012 | BE9: 1012 | BF9: 1021 | BG9: 1012
J10: 1028 | K10: 1028 | L10: 1028 | M10: 1034 | N10: 1034 | O10: 1034 | P10: 1034 | Q10: ○ | R10: 1032 | S10: 1022 | T10: 1022 | U10: 1022 | V10: 1022 | W10: 1022 | X10: 1022 | Y10: 1024 | Z10: 1024 | AA10: 1024 | AB10: 1024 | AC10: 1024 | AD10: 1024 | AE10: 1024 | AF10: 1024 | AG10: 1004 | AH10: 1035 | AI10: 1035 | AJ10: 1035 | AK10: 1006 | AL10: 1006 | AM10: 1006 | AN10: 1007 | AO10: 1007 | AP10: 1004 | AQ10: 1004 | AR10: 1004 | AS10: 1031 | AT10: 1009 | AU10: 1009 | AV10: 1033 | AW10: 1033 | AX10: 1033 | AY10: 1033 | AZ10: 1033 | BA10: 1033 | BB10: 1012 | BC10: 1012 | BD10: 1012 | BE10: 1012 | BF10: 1012 | BG10: 1012
J11: 1028 | K11: 1028 | L11: 1028 | M11: 1036 | N11: 1034 | O11: 1034 | P11: 1034 | Q11: ○ | R11: ○ | S11: ○ | T11: ○ | U11: ○ | V11: 1022 | W11: 1022 | X11: 1022 | Y11: 1024 | Z11: 1024 | AA11: 1024 | AB11: 1024 | AC11: 1037 | AD11: 1037 | AE11: 1004 | AF11: 1004 | AG11: 1004 | AH11: 1038 | AI11: 1038 | AJ11: 1035 | AK11: 1035 | AL11: 1035 | AM11: 1006 | AN11: 1039 | AO11: 1006 | AP11: 1006 | AQ11: 1006 | AR11: 1004 | AS11: 1004 | AT11: 1004 | AU11: 1004 | AV11: 1033 | AW11: 1033 | AX11: 1033 | AY11: 1033 | AZ11: 1033 | BA11: 1033 | BB11: 1040 | BC11: 1012 | BD11: 1012 | BE11: 1041 | BF11: 1012 | BG11: 1012
J12: 1042 | K12: 1042 | L12: 1036 | M12: 1036 | N12: 1034 | O12: 1034 | P12: 1034 | Q12: ○ | R12: ○ | S12: 1043 | T12: ○ | U12: ○ | V12: 1022 | W12: 1022 | X12: 1022 | Y12: 1024 | Z12: 1024 | AA12: 1037 | AB12: 1037 | AC12: 1037 | AD12: 1037 | AE12: 1004 | AF12: 1004 | AG12: 1004 | AH12: 1004 | AI12: 1038 | AJ12: 1035 | AK12: 1035 | AL12: 1035 | AM12: 1006 | AN12: 1006 | AO12: 1006 | AP12: 1044 | AQ12: 1004 | AR12: 1004 | AS12: 1004 | AT12: 1004 | AU12: 1004 | AV12: 1004 | AW12: 1033 | AX12: 1033 | AY12: 1033 | AZ12: 1033 | BA12: 1033 | BB12: 1033 | BC12: 1033 | BD12: 1033 | BE12: 1041 | BF12: 1012 | BG12: 1012
J13: 1042 | K13: 1042 | L13: 1036 | M13: 1034 | N13: 1034 | O13: 1034 | P13: 1034 | Q13: ○ | R13: ○ | S13: ○ | T13: ○ | U13: ○ | V13: ○ | W13: ○ | X13: ○ | Y13: 1037 | Z13: 1037 | AA13: 1037 | AB13: 1045 | AC13: 1046 | AD13: 1046 | AE13: 1046 | AF13: 1045 | AG13: 1045 | AH13: 1004 | AI13: 1038 | AJ13: 1038 | AK13: 1038 | AL13: 1035 | AM13: 1006 | AN13: 1006 | AO13: 1044 | AP13: 1044 | AQ13: 1004 | AR13: 1004 | AS13: 1004 | AT13: 1004 | AU13: 1004 | AV13: 1004 | AW13: 1047 | AX13: 1033 | AY13: 1033 | AZ13: 1033 | BA13: 1033 | BB13: 1033 | BC13: 1033 | BD13: 1033 | BE13: 1041 | BF13: 1041 | BG13: 1048
J14: 1036 | K14: 1036 | L14: 1036 | M14: 1034 | N14: 1049 | O14: 1049 | P14: ○ | Q14: ○ | R14: ○ | S14: ○ | T14: ○ | U14: ○ | V14: 1050 | W14: 1050 | X14: ○ | Y14: ○ | Z14: ○ | AA14: ○ | AB14: 1045 | AC14: 1045 | AD14: 1045 | AE14: 1045 | AF14: 1045 | AG14: 1004 | AH14: 1004 | AI14: 1004 | AJ14: 1004 | AK14: 1038 | AL14: 1035 | AM14: 1035 | AN14: 1035 | AO14: 1035 | AP14: 1035 | AQ14: 1035 | AR14: 1035 | AS14: 1004 | AT14: 1004 | AU14: 1004 | AV14: 1004 | AW14: 1047 | AX14: 1047 | AY14: 1047 | AZ14: 1047 | BA14: 1047 | BB14: 1047 | BC14: 1033 | BD14: 1033 | BE14: 1041 | BF14: 1041 | BG14: 1048
J15: 1036 | K15: 1036 | L15: 1036 | M15: 1034 | N15: 1049 | O15: 1049 | P15: ○ | Q15: ○ | R15: ○ | S15: ○ | T15: ○ | U15: ○ | V15: 1051 | W15: ○ | X15: ○ | Y15: ○ | Z15: ○ | AA15: ○ | AB15: ○ | AC15: ○ | AD15: ○ | AE15: 1052 | AF15: 1053 | AG15: 1004 | AH15: 1004 | AI15: 1004 | AJ15: 1004 | AK15: 1038 | AL15: 1004 | AM15: 1004 | AN15: 1035 | AO15: 1035 | AP15: 1035 | AQ15: 1035 | AR15: 1035 | AS15: 1004 | AT15: 1004 | AU15: 1004 | AV15: 1004 | AW15: 1054 | AX15: 1047 | AY15: 1047 | AZ15: 1047 | BA15: 1047 | BB15: 1047 | BC15: 1033 | BD15: 1033 | BE15: 1033 | BF15: 1033 | BG15: 1048
J16: 1055 | K16: 1056 | L16: 1036 | M16: 1034 | N16: 1057 | O16: 1057 | P16: ○ | Q16: ○ | R16: ○ | S16: ○ | T16: 1058 | U16: ○ | V16: ○ | W16: ○ | X16: ○ | Y16: ○ | Z16: ○ | AA16: ○ | AB16: ○ | AC16: ○ | AD16: ○ | AE16: 1052 | AF16: 1053 | AG16: 1004 | AH16: 1004 | AI16: 1004 | AJ16: 1004 | AK16: 1038 | AL16: 1004 | AM16: 1004 | AN16: 1004 | AO16: 1004 | AP16: 1004 | AQ16: 1004 | AR16: 1004 | AS16: 1004 | AT16: 1004 | AU16: 1004 | AV16: 1004 | AW16: 1054 | AX16: 1047 | AY16: 1047 | AZ16: 1047 | BA16: 1047 | BB16: 1047 | BC16: 1059 | BD16: 1033 | BE16: 1033 | BF16: 1033 | BG16: 1048
J17: 1055 | K17: 1036 | L17: 1036 | M17: 1034 | N17: 1057 | O17: 1057 | P17: ○ | Q17: ○ | R17: ○ | S17: ○ | T17: ○ | U17: ○ | V17: ○ | W17: ○ | X17: 1060 | Y17: ○ | Z17: ○ | AA17: ○ | AB17: 1052 | AC17: 1052 | AD17: 1052 | AE17: 1052 | AF17: 1052 | AG17: 1061 | AH17: 1061 | AI17: 1004 | AJ17: 1004 | AK17: 1038 | AL17: 1004 | AM17: 1062 | AN17: 1063 | AO17: 1063 | AP17: 1063 | AQ17: 1063 | AR17: 1004 | AS17: 1004 | AT17: 1004 | AU17: 1004 | AV17: 1004 | AW17: 1054 | AX17: 1047 | AY17: 1047 | AZ17: 1047 | BA17: 1047 | BB17: 1047 | BC17: 1059 | BD17: 1033 | BE17: 1033 | BF17: 1033 | BG17: 1048
J18: 1055 | K18: 1036 | L18: 1036 | M18: 1034 | N18: 1034 | O18: 1064 | P18: 1064 | Q18: 1064 | R18: 1034 | S18: 1034 | T18: 1065 | U18: 1065 | V18: 1065 | W18: ○ | X18: 1060 | Y18: ○ | Z18: ○ | AA18: ○ | AB18: 1052 | AC18: 1052 | AD18: 1052 | AE18: 1066 | AF18: 1052 | AG18: 1061 | AH18: 1061 | AI18: 1067 | AJ18: 1004 | AK18: 1004 | AL18: 1004 | AM18: 1062 | AN18: 1062 | AO18: 1062 | AP18: 1062 | AQ18: 1063 | AR18: 1063 | AS18: 1063 | AT18: 1063 | AU18: 1063 | AV18: 1063 | AW18: 1054 | AX18: 1047 | AY18: 1047 | AZ18: 1047 | BA18: 1047 | BB18: 1059 | BC18: 1059 | BD18: 1033 | BE18: 1033 | BF18: 1048 | BG18: 1048
J19: 1036 | K19: 1036 | L19: 1036 | M19: 1068 | N19: 1034 | O19: 1034 | P19: 1034 | Q19: 1034 | R19: 1034 | S19: 1034 | T19: 1069 | U19: ○ | V19: ○ | W19: ○ | X19: 1060 | Y19: ○ | Z19: ○ | AA19: ○ | AB19: 1052 | AC19: 1052 | AD19: 1052 | AE19: 1052 | AF19: 1052 | AG19: 1061 | AH19: 1067 | AI19: 1067 | AJ19: 1067 | AK19: 1070 | AL19: 1070 | AM19: 1062 | AN19: 1062 | AO19: 1062 | AP19: 1062 | AQ19: 1063 | AR19: 1063 | AS19: 1054 | AT19: 1054 | AU19: 1063 | AV19: 1063 | AW19: 1054 | AX19: 1054 | AY19: 1047 | AZ19: 1047 | BA19: 1047 | BB19: 1059 | BC19: 1033 | BD19: 1033 | BE19: 1033 | BF19: 1048 | BG19: 1048
J20: 1036 | K20: 1036 | L20: 1036 | M20: 1036 | N20: 1036 | O20: 1036 | P20: 1034 | Q20: 1034 | R20: 1034 | S20: 1034 | T20: 1069 | U20: ○ | V20: ○ | W20: 1060 | X20: 1060 | Y20: ○ | Z20: 1071 | AA20: ○ | AB20: 1052 | AC20: 1052 | AD20: 1052 | AE20: 1052 | AF20: 1072 | AG20: 1061 | AH20: 1067 | AI20: 1067 | AJ20: 1067 | AK20: 1067 | AL20: 1067 | AM20: 1054 | AN20: 1054 | AO20: 1054 | AP20: 1054 | AQ20: 1063 | AR20: 1063 | AS20: 1054 | AT20: 1054 | AU20: 1054 | AV20: 1054 | AW20: 1073 | AX20: 1054 | AY20: 1074 | AZ20: 1059 | BA20: 1059 | BB20: 1059 | BC20: 1033 | BD20: 1033 | BE20: 1033 | BF20: 1048 | BG20: 1048
J21: 1036 | K21: 1036 | L21: 1036 | M21: 1036 | N21: 1075 | O21: 1036 | P21: 1036 | Q21: ○ | R21: ○ | S21: 1069 | T21: 1069 | U21: ○ | V21: ○ | W21: ○ | X21: ○ | Y21: ○ | Z21: ○ | AA21: ○ | AB21: 1076 | AC21: 1076 | AD21: 1072 | AE21: 1072 | AF21: 1072 | AG21: 1061 | AH21: 1077 | AI21: 1067 | AJ21: 1067 | AK21: 1067 | AL21: 1067 | AM21: 1054 | AN21: 1054 | AO21: 1054 | AP21: 1054 | AQ21: 1063 | AR21: 1063 | AS21: 1054 | AT21: 1054 | AU21: 1078 | AV21: 1054 | AW21: 1073 | AX21: 1054 | AY21: 1074 | AZ21: 1059 | BA21: 1059 | BB21: 1059 | BC21: 1059 | BD21: 1079 | BE21: 1079 | BF21: 1048 | BG21: 1048
J22: 1036 | K22: 1080 | L22: 1080 | M22: 1036 | N22: 1036 | O22: 1036 | P22: 1036 | Q22: ○ | R22: ○ | S22: ○ | T22: ○ | U22: ○ | V22: ○ | W22: ○ | X22: 1081 | Y22: 1081 | Z22: ○ | AA22: 1076 | AB22: 1076 | AC22: 1076 | AD22: 1072 | AE22: 1072 | AF22: 1072 | AG22: 1061 | AH22: 1077 | AI22: 1077 | AJ22: 1077 | AK22: 1067 | AL22: 1067 | AM22: 1054 | AN22: 1054 | AO22: 1054 | AP22: 1054 | AQ22: 1054 | AR22: 1054 | AS22: 1054 | AT22: 1054 | AU22: 1078 | AV22: 1054 | AW22: 1073 | AX22: 1054 | AY22: 1074 | AZ22: 1059 | BA22: 1059 | BB22: 1059 | BC22: 1059 | BD22: 1082 | BE22: 1048 | BF22: 1048 | BG22: 1048
J23: 1036 | K23: 1036 | L23: 1080 | M23: 1036 | N23: 1036 | O23: ○ | P23: ○ | Q23: ○ | R23: ○ | S23: ○ | T23: ○ | U23: ○ | V23: ○ | W23: ○ | X23: 1083 | Y23: ○ | Z23: ○ | AA23: 1076 | AB23: 1076 | AC23: 1076 | AD23: 1076 | AE23: 1072 | AF23: 1072 | AG23: 1061 | AH23: 1061 | AI23: 1061 | AJ23: 1077 | AK23: 1077 | AL23: 1061 | AM23: 1061 | AN23: 1061 | AO23: 1061 | AP23: 1061 | AQ23: 1061 | AR23: 1078 | AS23: 1078 | AT23: 1078 | AU23: 1078 | AV23: 1054 | AW23: 1054 | AX23: 1054 | AY23: 1074 | AZ23: 1084 | BA23: 1084 | BB23: 1059 | BC23: 1059 | BD23: 1059 | BE23: 1048 | BF23: 1085 | BG23: 1048
J24: 1086 | K24: 1036 | L24: 1036 | M24: 1036 | N24: ○ | O24: ○ | P24: 1087 | Q24: 1087 | R24: 1088 | S24: 1088 | T24: 1088 | U24: 1088 | V24: 1089 | W24: ○ | X24: ○ | Y24: ○ | Z24: 1090 | AA24: 1090 | AB24: 1076 | AC24: 1076 | AD24: 1076 | AE24: 1076 | AF24: 1076 | AG24: 1061 | AH24: 1061 | AI24: 1061 | AJ24: 1061 | AK24: 1061 | AL24: 1061 | AM24: 1061 | AN24: 1061 | AO24: 1061 | AP24: 1061 | AQ24: 1061 | AR24: 1078 | AS24: 1078 | AT24: 1078 | AU24: 1091 | AV24: 1054 | AW24: 1054 | AX24: 1092 | AY24: 1074 | AZ24: 1074 | BA24: 1084 | BB24: 1059 | BC24: 1059 | BD24: 1059 | BE24: 1048 | BF24: 1048 | BG24: 1048
J25: 1086 | K25: 1086 | L25: ○ | M25: ○ | N25: ○ | O25: ○ | P25: 1093 | Q25: 1087 | R25: 1088 | S25: 1088 | T25: 1094 | U25: 1088 | V25: 1088 | W25: 1088 | X25: 1095 | Y25: 1095 | Z25: 1095 | AA25: ○ | AB25: ○ | AC25: ○ | AD25: 1076 | AE25: 1076 | AF25: 1076 | AG25: 1061 | AH25: 1061 | AI25: 1096 | AJ25: 1096 | AK25: 1096 | AL25: 1096 | AM25: 1061 | AN25: 1061 | AO25: 1061 | AP25: 1061 | AQ25: 1061 | AR25: 1078 | AS25: 1078 | AT25: 1078 | AU25: 1078 | AV25: 1097 | AW25: 1074 | AX25: 1074 | AY25: 1074 | AZ25: 1074 | BA25: 1059 | BB25: 1059 | BC25: 1059 | BD25: 1059 | BE25: 1059 | BF25: 1098 | BG25: 1098
J26: ○ | K26: ○ | L26: ○ | M26: ○ | N26: ○ | O26: ○ | P26: ○ | Q26: 1087 | R26: 1099 | S26: 1099 | T26: ○ | U26: ○ | V26: ○ | W26: 1088 | X26: ○ | Y26: ○ | Z26: ○ | AA26: ○ | AB26: 1100 | AC26: ○ | AD26: ○ | AE26: 1101 | AF26: 1076 | AG26: 1076 | AH26: 1076 | AI26: 1096 | AJ26: 1096 | AK26: 1096 | AL26: 1096 | AM26: 1096 | AN26: 1096 | AO26: 1102 | AP26: 1061 | AQ26: 1061 | AR26: 1078 | AS26: 1078 | AT26: 1078 | AU26: 1078 | AV26: 1097 | AW26: 1074 | AX26: 1074 | AY26: 1074 | AZ26: 1074 | BA26: 1059 | BB26: 1103 | BC26: 1059 | BD26: 1059 | BE26: 1059 | BF26: 1059 | BG26: 1098
J27: ○ | K27: ○ | L27: 1104 | M27: 1104 | N27: ○ | O27: ○ | P27: ○ | Q27: 1087 | R27: 1099 | S27: 1099 | T27: ○ | U27: ○ | V27: ○ | W27: ○ | X27: ○ | Y27: 1105 | Z27: 1105 | AA27: 1106 | AB27: 1100 | AC27: ○ | AD27: ○ | AE27: 1101 | AF27: 1076 | AG27: 1076 | AH27: 1076 | AI27: 1096 | AJ27: 1096 | AK27: 1096 | AL27: 1096 | AM27: 1096 | AN27: 1096 | AO27: ○ | AP27: ○ | AQ27: 1078 | AR27: 1078 | AS27: 1107 | AT27: 1097 | AU27: 1097 | AV27: 1097 | AW27: 1108 | AX27: 1074 | AY27: 1074 | AZ27: 1059 | BA27: 1059 | BB27: 1103 | BC27: 1059 | BD27: 1059 | BE27: 1059 | BF27: 1059 | BG27: 1098
J28: 1109 | K28: ○ | L28: ○ | M28: 1104 | N28: ○ | O28: ○ | P28: 1110 | Q28: 1087 | R28: 1087 | S28: 1087 | T28: 1087 | U28: ○ | V28: 1105 | W28: 1105 | X28: 1105 | Y28: 1105 | Z28: 1105 | AA28: 1100 | AB28: 1100 | AC28: ○ | AD28: ○ | AE28: ○ | AF28: ○ | AG28: ○ | AH28: ○ | AI28: ○ | AJ28: ○ | AK28: 1111 | AL28: 1111 | AM28: ○ | AN28: ○ | AO28: ○ | AP28: ○ | AQ28: ○ | AR28: 1107 | AS28: 1107 | AT28: 1097 | AU28: 1097 | AV28: 1097 | AW28: 1097 | AX28: 1112 | AY28: 1112 | AZ28: 1059 | BA28: 1059 | BB28: 1059 | BC28: 1059 | BD28: 1059 | BE28: 1059 | BF28: 1098 | BG28: 1098
J29: 1109 | K29: 1109 | L29: ○ | M29: 1104 | N29: ○ | O29: ○ | P29: 1110 | Q29: 1110 | R29: 1110 | S29: 1110 | T29: 1087 | U29: ○ | V29: 1105 | W29: 1105 | X29: 1105 | Y29: 1105 | Z29: 1105 | AA29: 1100 | AB29: 1100 | AC29: 1100 | AD29: 1100 | AE29: ○ | AF29: ○ | AG29: ○ | AH29: ○ | AI29: ○ | AJ29: ○ | AK29: ○ | AL29: ○ | AM29: ○ | AN29: 1113 | AO29: 1113 | AP29: ○ | AQ29: ○ | AR29: ○ | AS29: ○ | AT29: 1097 | AU29: 1097 | AV29: 1097 | AW29: 1097 | AX29: 1097 | AY29: 1112 | AZ29: 1112 | BA29: 1112 | BB29: 1112 | BC29: 1112 | BD29: 1059 | BE29: 1059 | BF29: 1098 | BG29: 1098
J30: ○ | K30: ○ | L30: ○ | M30: 1104 | N30: ○ | O30: ○ | P30: ○ | Q30: 1114 | R30: 1087 | S30: 1087 | T30: 1087 | U30: ○ | V30: 1115 | W30: 1105 | X30: 1105 | Y30: 1116 | Z30: 1116 | AA30: 1116 | AB30: 1116 | AC30: 1100 | AD30: 1100 | AE30: ○ | AF30: 1117 | AG30: ○ | AH30: 1118 | AI30: ○ | AJ30: ○ | AK30: ○ | AL30: ○ | AM30: ○ | AN30: 1119 | AO30: ○ | AP30: ○ | AQ30: ○ | AR30: ○ | AS30: ○ | AT30: 1097 | AU30: 1097 | AV30: 1097 | AW30: 1097 | AX30: 1097 | AY30: 1120 | AZ30: ○ | BA30: ○ | BB30: 1112 | BC30: 1112 | BD30: 1059 | BE30: 1059 | BF30: 1121 | BG30: 1098
J31: ○ | K31: ○ | L31: ○ | M31: ○ | N31: ○ | O31: 1122 | P31: ○ | Q31: 1114 | R31: 1087 | S31: ○ | T31: ○ | U31: ○ | V31: ○ | W31: 1105 | X31: 1105 | Y31: 1123 | Z31: 1116 | AA31: 1116 | AB31: 1116 | AC31: 1124 | AD31: ○ | AE31: ○ | AF31: 1117 | AG31: ○ | AH31: ○ | AI31: ○ | AJ31: ○ | AK31: ○ | AL31: 1125 | AM31: 1125 | AN31: 1119 | AO31: ○ | AP31: ○ | AQ31: ○ | AR31: ○ | AS31: ○ | AT31: ○ | AU31: ○ | AV31: 1097 | AW31: 1097 | AX31: ○ | AY31: ○ | AZ31: ○ | BA31: ○ | BB31: ○ | BC31: 1126 | BD31: 1126 | BE31: 1098 | BF31: 1098 | BG31: 1098
J32: ○ | K32: 1127 | L32: 1127 | M32: ○ | N32: ○ | O32: ○ | P32: ○ | Q32: ○ | R32: 1087 | S32: ○ | T32: ○ | U32: 1128 | V32: ○ | W32: 1123 | X32: 1123 | Y32: 1123 | Z32: 1116 | AA32: 1116 | AB32: 1124 | AC32: 1124 | AD32: ○ | AE32: ○ | AF32: ○ | AG32: ○ | AH32: ○ | AI32: ○ | AJ32: ○ | AK32: 1129 | AL32: 1119 | AM32: 1119 | AN32: 1119 | AO32: 1130 | AP32: ○ | AQ32: ○ | AR32: ○ | AS32: 1131 | AT32: ○ | AU32: ○ | AV32: ○ | AW32: ○ | AX32: ○ | AY32: ○ | AZ32: ○ | BA32: ○ | BB32: ○ | BC32: ○ | BD32: ○ | BE32: 1098 | BF32: 1098 | BG32: 1098
J33: ○ | K33: ○ | L33: ○ | M33: ○ | N33: ○ | O33: ○ | P33: 1132 | Q33: ○ | R33: ○ | S33: ○ | T33: ○ | U33: ○ | V33: ○ | W33: 1123 | X33: 1123 | Y33: 1133 | Z33: 1116 | AA33: 1116 | AB33: 1124 | AC33: 1124 | AD33: ○ | AE33: ○ | AF33: ○ | AG33: ○ | AH33: 1119 | AI33: 1119 | AJ33: 1119 | AK33: 1119 | AL33: 1119 | AM33: 1134 | AN33: 1134 | AO33: 1130 | AP33: 1130 | AQ33: ○ | AR33: ○ | AS33: 1131 | AT33: ○ | AU33: ○ | AV33: ○ | AW33: ○ | AX33: ○ | AY33: ○ | AZ33: ○ | BA33: ○ | BB33: ○ | BC33: ○ | BD33: ○ | BE33: ○ | BF33: ○ | BG33: ○

Sheet 補助 (hidden)
K1: =COUNTIF(L:L,0) -> 0
G2: 順路 | K2: 空領域 | S2: 現在位置
C3: 縦 | D3: 横 | F3: 順 | G3: 縦 | H3: 横 | I3: 向 | K3: 領域番号 | L3: 連結 | M3: 開始 | O3: 終了 | Q3: ｺﾏ数 | S3: 縦 | T3: 横
A4: =IF(迷路!$B$10=B4,A3,A3+1) -> 1 | B4: 左上 | C4: =ROW(迷路!K4) -> 4 | D4: =COLUMN(迷路!J4) -> 10 | F4: 1 | G4: 33 | H4: 58 | I4: ← | K4: 1001 | L4: 1 | M4: 4 | N4: 10 | O4: 8 | P4: 14 | Q4: 9 | S4: 33 | T4: 59
A5: =IF(迷路!$B$10=B5,A4,A4+1) -> 2 | B5: 右上 | C5: =C4 -> 4 | D5: =D4+C11-1 -> 59 | F5: =F4+1 -> 2 | G5: 33 | H5: 57 | I5: ← | K5: 1002 | L5: 1 | M5: 4 | N5: 13 | O5: 5 | P5: 15 | Q5: 5
A6: =IF(迷路!$B$10=B6,A5,A5+1) -> 2 | B6: 右下 | C6: =C4+B11-1 -> 33 | D6: =D5 -> 59 | F6: =F5+1 -> 3 | G6: 33 | H6: 56 | I6: ↑ | K6: 1003 | L6: 1 | M6: 4 | N6: 16 | O6: 8 | P6: 25 | Q6: 29
A7: =IF(迷路!$B$10=B7,A6,A6+1) -> 3 | B7: 左下 | C7: =C6 -> 33 | D7: =D4 -> 10 | F7: 4 | G7: 32 | H7: 56 | I7: ← | K7: 1004 | L7: 1 | M7: 4 | N7: 23 | O7: 18 | P7: 38 | Q7: 116
F8: 5 | G8: 32 | H8: 55 | I8: ↓ | K8: 1005 | L8: 1 | M8: 4 | N8: 33 | O8: 5 | P8: 38 | Q8: 9
B9: 縦横マス数 | F9: 6 | G9: 33 | H9: 55 | I9: ← | K9: 1006 | L9: 1 | M9: 4 | N9: 39 | O9: 13 | P9: 40 | Q9: 24
B10: 縦 | C10: 横 | D10: 総マス | F10: 7 | G10: 33 | H10: 54 | I10: ← | K10: 1007 | L10: 1 | M10: 4 | N10: 40 | O10: 10 | P10: 41 | Q10: 10
B11: =迷路!B6 -> 30 | C11: =迷路!C6 -> 50 | D11: =B11*C11 -> 1500 | F11: 8 | G11: 33 | H11: 53 | I11: ↑ | K11: 1008 | L11: 1 | M11: 4 | N11: 42 | O11: 4 | P11: 42 | Q11: 1
F12: 9 | G12: 32 | H12: 53 | I12: → | K12: 1009 | L12: 1 | M12: 4 | N12: 47 | O12: 10 | P12: 47 | Q12: 33
B13: 開始 | F13: 10 | G13: 32 | H13: 54 | I13: ↑ | K13: 1010 | L13: 1 | M13: 4 | N13: 48 | O13: 7 | P13: 53 | Q13: 16
B14: 位置 | C14: 縦 | D14: 横 | F14: 11 | G14: 31 | H14: 54 | I14: ← | K14: 1011 | L14: 1 | M14: 4 | N14: 50 | O14: 5 | P14: 53 | Q14: 6
B15: =迷路!B10 -> 右下 | C15: =VLOOKUP($B15,補助!$B$4:$D$7,2,FALSE) -> 33 | D15: =VLOOKUP($B15,補助!$B$4:$D$7,3,FALSE) -> 59 | F15: 12 | G15: 31 | H15: 53 | I15: ↑ | K15: 1012 | L15: 1 | M15: 4 | N15: 56 | O15: 12 | P15: 59 | Q15: 25
F16: 13 | G16: 30 | H16: 53 | I16: ← | K16: 1013 | L16: 1 | M16: 4 | N16: 59 | O16: 6 | P16: 59 | Q16: 3
B17: 終了 | F17: 14 | G17: 30 | H17: 52 | I17: ↓ | K17: 1014 | L17: 1 | M17: 5 | N17: 11 | O17: 5 | P17: 11 | Q17: 1
B18: 位置 | C18: 縦 | D18: 横 | F18: 15 | G18: 31 | H18: 52 | I18: ↓ | K18: 1015 | L18: 1 | M18: 5 | N18: 16 | O18: 6 | P18: 16 | Q18: 3
B19: =迷路!C10 -> 左上 | C19: =VLOOKUP($B19,補助!$B$4:$D$7,2,FALSE) -> 4 | D19: =VLOOKUP($B19,補助!$B$4:$D$7,3,FALSE) -> 10 | F19: 16 | G19: 32 | H19: 52 | I19: ↓ | K19: 1016 | L19: 1 | M19: 5 | N19: 19 | O19: 8 | P19: 21 | Q19: 9
F20: 17 | G20: 33 | H20: 52 | I20: ← | K20: 1017 | L20: 1 | M20: 5 | N20: 26 | O20: 6 | P20: 27 | Q20: 6
B21: 枠終了 | F21: 18 | G21: 33 | H21: 51 | I21: ↑ | K21: 1018 | L21: 1 | M21: 5 | N21: 28 | O21: 6 | P21: 30 | Q21: 5
B22: 位置 | C22: 縦 | D22: 横 | F22: 19 | G22: 32 | H22: 51 | I22: ↑ | K22: 1019 | L22: 1 | M22: 5 | N22: 33 | O22: 6 | P22: 35 | Q22: 7
B23: 右下 | C23: =VLOOKUP($B23,補助!$B$4:$D$7,2,FALSE) -> 33 | D23: =VLOOKUP($B23,補助!$B$4:$D$7,3,FALSE) -> 59 | F23: 20 | G23: 31 | H23: 51 | I23: ← | K23: 1020 | L23: 1 | M23: 5 | N23: 44 | O23: 5 | P23: 45 | Q23: 2
F24: 21 | G24: 31 | H24: 50 | I24: ↓ | K24: 1021 | L24: 1 | M24: 5 | N24: 57 | O24: 9 | P24: 58 | Q24: 6
B25: 領域番号 | C25: 連結 | F25: 22 | G25: 32 | H25: 50 | I25: ↓ | K25: 1022 | L25: 1 | M25: 6 | N25: 28 | O25: 12 | P25: 24 | Q25: 27
B26: 1119 | C26: =IF(ISNUMBER(B26)=FALSE,1,IFERROR(VLOOKUP(B26,K:L,2,FALSE),"")) -> 1 | F26: 23 | G26: 33 | H26: 50 | I26: ← | K26: 1023 | L26: 1 | M26: 6 | N26: 36 | O26: 9 | P26: 36 | Q26: 13
F27: 24 | G27: 33 | H27: 49 | I27: ↑ | K27: 1024 | L27: 1 | M27: 7 | N27: 29 | O27: 12 | P27: 26 | Q27: 20
B28: ※開始ボタンで挑戦を始めましょう。 | F28: 25 | G28: 32 | H28: 49 | I28: ← | K28: 1025 | L28: 1 | M28: 7 | N28: 34 | O28: 7 | P28: 34 | Q28: 1
F29: 26 | G29: 32 | H29: 48 | I29: ↓ | K29: 1026 | L29: 1 | M29: 7 | N29: 40 | O29: 8 | P29: 40 | Q29: 2
B30: 正解移動数 | C30: 実移動数 | F30: 27 | G30: 33 | H30: 48 | I30: ← | K30: 1027 | L30: 1 | M30: 7 | N30: 46 | O30: 7 | P30: 46 | Q30: 1
B31: 316 | F31: 28 | G31: 33 | H31: 47 | I31: ← | K31: 1028 | L31: 1 | M31: 8 | N31: 10 | O31: 11 | P31: 12 | Q31: 12
F32: 29 | G32: 33 | H32: 46 | I32: ↑ | K32: 1029 | L32: 1 | M32: 8 | N32: 17 | O32: 8 | P32: 17 | Q32: 1
B33: 開始時間 | C33: 終了時間 | F33: 30 | G33: 32 | H33: 46 | I33: → | K33: 1030 | L33: 1 | M33: 8 | N33: 28 | O33: 9 | P33: 29 | Q33: 4
F34: 31 | G34: 32 | H34: 47 | I34: ↑ | K34: 1031 | L34: 1 | M34: 8 | N34: 45 | O34: 10 | P34: 45 | Q34: 3
F35: 32 | G35: 31 | H35: 47 | I35: ← | K35: 1032 | L35: 1 | M35: 9 | N35: 18 | O35: 10 | P35: 18 | Q35: 2
F36: 33 | G36: 31 | H36: 46 | I36: ← | K36: 1033 | L36: 1 | M36: 9 | N36: 49 | O36: 20 | P36: 57 | Q36: 52
F37: 34 | G37: 31 | H37: 45 | I37: ↑ | K37: 1034 | L37: 1 | M37: 10 | N37: 13 | O37: 20 | P37: 19 | Q37: 32
A38: 1 | B38: =VLOOKUP(A38,$A$4:$B$7,2,FALSE) -> 左上 | F38: 35 | G38: 30 | H38: 45 | I38: ↑ | K38: 1035 | L38: 1 | M38: 10 | N38: 34 | O38: 15 | P38: 44 | Q38: 22
A39: 2 | B39: =VLOOKUP(A39,$A$4:$B$7,2,FALSE) -> 右上 | F39: 36 | G39: 29 | H39: 45 | I39: ← | K39: 1036 | L39: 1 | M39: 11 | N39: 13 | O39: 24 | P39: 13 | Q39: 42
A40: 3 | B40: 左下 | F40: 37 | G40: 29 | H40: 44 | I40: ↓ | K40: 1037 | L40: 1 | M40: 11 | N40: 29 | O40: 13 | P40: 27 | Q40: 9
F41: 38 | G41: 30 | H41: 44 | I41: ← | K41: 1038 | L41: 1 | M41: 11 | N41: 34 | O41: 17 | P41: 37 | Q41: 10
B42: FALSE | F42: 39 | G42: 30 | H42: 43 | I42: ↓ | K42: 1039 | L42: 1 | M42: 11 | N42: 40 | O42: 11 | P42: 40 | Q42: 1
F43: 40 | G43: 31 | H43: 43 | I43: → | K43: 1040 | L43: 1 | M43: 11 | N43: 54 | O43: 11 | P43: 54 | Q43: 1
F44: 41 | G44: 31 | H44: 44 | I44: ↓ | K44: 1041 | L44: 1 | M44: 11 | N44: 57 | O44: 14 | P44: 58 | Q44: 6
F45: 42 | G45: 32 | H45: 44 | I45: ↓ | K45: 1042 | L45: 1 | M45: 12 | N45: 10 | O45: 13 | P45: 11 | Q45: 4
F46: 43 | G46: 33 | H46: 44 | I46: ← | K46: 1043 | L46: 1 | M46: 12 | N46: 19 | O46: 12 | P46: 19 | Q46: 1
F47: 44 | G47: 33 | H47: 43 | I47: ↑ | K47: 1044 | L47: 1 | M47: 12 | N47: 42 | O47: 13 | P47: 42 | Q47: 3
F48: 45 | G48: 32 | H48: 43 | I48: ← | K48: 1045 | L48: 1 | M48: 13 | N48: 28 | O48: 14 | P48: 32 | Q48: 8
F49: 46 | G49: 32 | H49: 42 | I49: ↑ | K49: 1046 | L49: 1 | M49: 13 | N49: 29 | O49: 13 | P49: 31 | Q49: 3
F50: 47 | G50: 31 | H50: 42 | I50: ← | K50: 1047 | L50: 1 | M50: 13 | N50: 49 | O50: 19 | P50: 53 | Q50: 29
F51: 48 | G51: 31 | H51: 41 | I51: ↑ | K51: 1048 | L51: 1 | M51: 13 | N51: 59 | O51: 24 | P51: 59 | Q51: 21
F52: 49 | G52: 30 | H52: 41 | I52: → | K52: 1049 | L52: 1 | M52: 14 | N52: 14 | O52: 15 | P52: 15 | Q52: 4
F53: 50 | G53: 30 | H53: 42 | I53: ↑ | K53: 1050 | L53: 1 | M53: 14 | N53: 22 | O53: 14 | P53: 23 | Q53: 2
F54: 51 | G54: 29 | H54: 42 | I54: → | K54: 1051 | L54: 1 | M54: 15 | N54: 22 | O54: 15 | P54: 22 | Q54: 1
F55: 52 | G55: 29 | H55: 43 | I55: ↑ | K55: 1052 | L55: 1 | M55: 15 | N55: 31 | O55: 20 | P55: 31 | Q55: 20
F56: 53 | G56: 28 | H56: 43 | I56: ← | K56: 1053 | L56: 1 | M56: 15 | N56: 32 | O56: 16 | P56: 32 | Q56: 2
F57: 54 | G57: 28 | H57: 42 | I57: ↑ | K57: 1054 | L57: 1 | M57: 15 | N57: 49 | O57: 24 | P57: 49 | Q57: 40
F58: 55 | G58: 27 | H58: 42 | I58: ← | K58: 1055 | L58: 1 | M58: 16 | N58: 10 | O58: 18 | P58: 10 | Q58: 3
F59: 56 | G59: 27 | H59: 41 | I59: ↓ | K59: 1056 | L59: 1 | M59: 16 | N59: 11 | O59: 16 | P59: 11 | Q59: 1
F60: 57 | G60: 28 | H60: 41 | I60: ← | K60: 1057 | L60: 1 | M60: 16 | N60: 14 | O60: 17 | P60: 15 | Q60: 4
F61: 58 | G61: 28 | H61: 40 | I61: ← | K61: 1058 | L61: 1 | M61: 16 | N61: 20 | O61: 16 | P61: 20 | Q61: 1
F62: 59 | G62: 28 | H62: 39 | I62: ↓ | K62: 1059 | L62: 1 | M62: 16 | N62: 55 | O62: 30 | P62: 57 | Q62: 48
F63: 60 | G63: 29 | H63: 39 | I63: ↓ | K63: 1060 | L63: 1 | M63: 17 | N63: 24 | O63: 20 | P63: 24 | Q63: 5
F64: 61 | G64: 30 | H64: 39 | I64: ← | K64: 1061 | L64: 1 | M64: 17 | N64: 33 | O64: 26 | P64: 43 | Q64: 37
F65: 62 | G65: 30 | H65: 38 | I65: ↑ | K65: 1062 | L65: 1 | M65: 17 | N65: 39 | O65: 19 | P65: 42 | Q65: 9
F66: 63 | G66: 29 | H66: 38 | I66: ← | K66: 1063 | L66: 1 | M66: 17 | N66: 40 | O66: 21 | P66: 44 | Q66: 18
F67: 64 | G67: 29 | H67: 37 | I67: ← | K67: 1064 | L67: 1 | M67: 18 | N67: 15 | O67: 18 | P67: 17 | Q67: 3
F68: 65 | G68: 29 | H68: 36 | I68: ↑ | K68: 1065 | L68: 1 | M68: 18 | N68: 20 | O68: 18 | P68: 22 | Q68: 3
F69: 66 | G69: 28 | H69: 36 | I69: ← | K69: 1066 | L69: 1 | M69: 18 | N69: 31 | O69: 18 | P69: 31 | Q69: 1
F70: =F69+1 -> 67 | G70: 28 | H70: 35 | I70: ↓ | K70: 1067 | L70: 1 | M70: 18 | N70: 35 | O70: 22 | P70: 38 | Q70: 15
F71: 68 | G71: 29 | H71: 35 | I71: ← | K71: 1068 | L71: 1 | M71: 19 | N71: 13 | O71: 19 | P71: 13 | Q71: 1
F72: 69 | G72: 29 | H72: 34 | I72: ↑ | K72: 1069 | L72: 1 | M72: 19 | N72: 20 | O72: 21 | P72: 20 | Q72: 4
F73: 70 | G73: 28 | H73: 34 | I73: ← | K73: 1070 | L73: 1 | M73: 19 | N73: 37 | O73: 19 | P73: 38 | Q73: 2
F74: 71 | G74: 28 | H74: 33 | I74: ↓ | K74: 1071 | L74: 1 | M74: 20 | N74: 26 | O74: 20 | P74: 26 | Q74: 1
F75: 72 | G75: 29 | H75: 33 | I75: ↓ | K75: 1072 | L75: 1 | M75: 20 | N75: 32 | O75: 23 | P75: 32 | Q75: 9
F76: 73 | G76: 30 | H76: 33 | I76: ↓ | K76: 1073 | L76: 1 | M76: 20 | N76: 49 | O76: 22 | P76: 49 | Q76: 3
F77: 74 | G77: 31 | H77: 33 | I77: → | K77: 1074 | L77: 1 | M77: 20 | N77: 51 | O77: 27 | P77: 51 | Q77: 16
F78: 75 | G78: 31 | H78: 34 | I78: → | K78: 1075 | L78: 1 | M78: 21 | N78: 14 | O78: 21 | P78: 14 | Q78: 1
F79: 76 | G79: 31 | H79: 35 | I79: ↑ | K79: 1076 | L79: 1 | M79: 21 | N79: 28 | O79: 27 | P79: 34 | Q79: 23
F80: 77 | G80: 30 | H80: 35 | I80: → | K80: 1077 | L80: 1 | M80: 21 | N80: 34 | O80: 23 | P80: 37 | Q80: 6
F81: 78 | G81: 30 | H81: 36 | I81: → | K81: 1078 | L81: 1 | M81: 21 | N81: 47 | O81: 27 | P81: 44 | Q81: 19
F82: 79 | G82: 30 | H82: 37 | I82: ↓ | K82: 1079 | L82: 1 | M82: 21 | N82: 56 | O82: 21 | P82: 57 | Q82: 2
F83: 80 | G83: 31 | H83: 37 | I83: ← | K83: 1080 | L83: 1 | M83: 22 | N83: 11 | O83: 23 | P83: 12 | Q83: 3
F84: 81 | G84: 31 | H84: 36 | I84: ↓ | K84: 1081 | L84: 1 | M84: 22 | N84: 24 | O84: 22 | P84: 25 | Q84: 2
F85: 82 | G85: 32 | H85: 36 | I85: ← | K85: 1082 | L85: 1 | M85: 22 | N85: 56 | O85: 22 | P85: 56 | Q85: 1
F86: 83 | G86: 32 | H86: 35 | I86: ← | K86: 1083 | L86: 1 | M86: 23 | N86: 24 | O86: 23 | P86: 24 | Q86: 1
F87: 84 | G87: 32 | H87: 34 | I87: ← | K87: 1084 | L87: 1 | M87: 23 | N87: 52 | O87: 24 | P87: 53 | Q87: 3
F88: 85 | G88: 32 | H88: 33 | I88: ↓ | K88: 1085 | L88: 1 | M88: 23 | N88: 58 | O88: 23 | P88: 58 | Q88: 1
F89: 86 | G89: 33 | H89: 33 | I89: ← | K89: 1086 | L89: 1 | M89: 24 | N89: 10 | O89: 25 | P89: 11 | Q89: 3
F90: 87 | G90: 33 | H90: 32 | I90: ↑ | K90: 1087 | L90: 1 | M90: 24 | N90: 16 | O90: 32 | P90: 18 | Q90: 15
F91: 88 | G91: 32 | H91: 32 | I91: ← | K91: 1088 | L91: 1 | M91: 24 | N91: 18 | O91: 26 | P91: 23 | Q91: 10
F92: 89 | G92: 32 | H92: 31 | I92: ↓ | K92: 1089 | L92: 1 | M92: 24 | N92: 22 | O92: 24 | P92: 22 | Q92: 1
F93: 90 | G93: 33 | H93: 31 | I93: ← | K93: 1090 | L93: 1 | M93: 24 | N93: 26 | O93: 24 | P93: 27 | Q93: 2
F94: 91 | G94: 33 | H94: 30 | I94: ↑ | K94: 1091 | L94: 1 | M94: 24 | N94: 47 | O94: 24 | P94: 47 | Q94: 1
F95: 92 | G95: 32 | H95: 30 | I95: ↑ | K95: 1092 | L95: 1 | M95: 24 | N95: 50 | O95: 24 | P95: 50 | Q95: 1
F96: 93 | G96: 31 | H96: 30 | I96: → | K96: 1093 | L96: 1 | M96: 25 | N96: 16 | O96: 25 | P96: 16 | Q96: 1
F97: 94 | G97: 31 | H97: 31 | I97: ↑ | K97: 1094 | L97: 1 | M97: 25 | N97: 20 | O97: 25 | P97: 20 | Q97: 1
F98: 95 | G98: 30 | H98: 31 | I98: ↑ | K98: 1095 | L98: 1 | M98: 25 | N98: 24 | O98: 25 | P98: 26 | Q98: 3
F99: 96 | G99: 29 | H99: 31 | I99: → | K99: 1096 | L99: 1 | M99: 25 | N99: 35 | O99: 27 | P99: 40 | Q99: 16
F100: 97 | G100: 29 | H100: 32 | I100: ↑ | K100: 1097 | L100: 1 | M100: 25 | N100: 48 | O100: 31 | P100: 49 | Q100: 21
F101: 98 | G101: 28 | H101: 32 | I101: ← | K101: 1098 | L101: 1 | M101: 25 | N101: 58 | O101: 32 | P101: 59 | Q101: 15
F102: 99 | G102: 28 | H102: 31 | I102: ← | K102: 1099 | L102: 1 | M102: 26 | N102: 18 | O102: 27 | P102: 19 | Q102: 4
F103: 100 | G103: 28 | H103: 30 | I103: ← | K103: 1100 | L103: 1 | M103: 26 | N103: 28 | O103: 30 | P103: 30 | Q103: 10
F104: 101 | G104: 28 | H104: 29 | I104: ↑ | K104: 1101 | L104: 1 | M104: 26 | N104: 31 | O104: 27 | P104: 31 | Q104: 2
F105: 102 | G105: 27 | H105: 29 | I105: → | K105: 1102 | L105: 1 | M105: 26 | N105: 41 | O105: 26 | P105: 41 | Q105: 1
F106: 103 | G106: 27 | H106: 30 | I106: ↑ | K106: 1103 | L106: 1 | M106: 26 | N106: 54 | O106: 27 | P106: 54 | Q106: 2
F107: 104 | G107: 26 | H107: 30 | I107: ← | K107: 1104 | L107: 1 | M107: 27 | N107: 12 | O107: 30 | P107: 13 | Q107: 5
F108: 105 | G108: 26 | H108: 29 | I108: ↑ | K108: 1105 | L108: 1 | M108: 27 | N108: 25 | O108: 31 | P108: 24 | Q108: 16
F109: 106 | G109: 25 | H109: 29 | I109: ← | K109: 1106 | L109: 1 | M109: 27 | N109: 27 | O109: 27 | P109: 27 | Q109: 1
F110: 107 | G110: 25 | H110: 28 | I110: ← | K110: 1107 | L110: 1 | M110: 27 | N110: 45 | O110: 28 | P110: 45 | Q110: 3
F111: 108 | G111: 25 | H111: 27 | I111: ↓ | K111: 1108 | L111: 1 | M111: 27 | N111: 49 | O111: 27 | P111: 49 | Q111: 1
F112: 109 | G112: 26 | H112: 27 | I112: ← | K112: 1109 | L112: 1 | M112: 28 | N112: 10 | O112: 29 | P112: 11 | Q112: 3
F113: 110 | G113: 26 | H113: 26 | I113: ← | K113: 1110 | L113: 1 | M113: 28 | N113: 16 | O113: 29 | P113: 19 | Q113: 5
F114: 111 | G114: 26 | H114: 25 | I114: ← | K114: 1111 | L114: 1 | M114: 28 | N114: 37 | O114: 28 | P114: 38 | Q114: 2
F115: 112 | G115: 26 | H115: 24 | I115: ↓ | K115: 1112 | L115: 1 | M115: 28 | N115: 50 | O115: 30 | P115: 55 | Q115: 9
F116: 113 | G116: 27 | H116: 24 | I116: ← | K116: 1113 | L116: 1 | M116: 29 | N116: 40 | O116: 29 | P116: 41 | Q116: 2
F117: 114 | G117: 27 | H117: 23 | I117: ← | K117: 1114 | L117: 1 | M117: 30 | N117: 17 | O117: 31 | P117: 17 | Q117: 2
F118: 115 | G118: 27 | H118: 22 | I118: ↑ | K118: 1115 | L118: 1 | M118: 30 | N118: 22 | O118: 30 | P118: 22 | Q118: 1
F119: 116 | G119: 26 | H119: 22 | I119: ← | K119: 1116 | L119: 1 | M119: 30 | N119: 25 | O119: 33 | P119: 27 | Q119: 11
F120: 117 | G120: 26 | H120: 21 | I120: ← | K120: 1117 | L120: 1 | M120: 30 | N120: 32 | O120: 31 | P120: 32 | Q120: 2
F121: 118 | G121: 26 | H121: 20 | I121: ↓ | K121: 1118 | L121: 1 | M121: 30 | N121: 34 | O121: 30 | P121: 34 | Q121: 1
F122: 119 | G122: 27 | H122: 20 | I122: → | K122: 1119 | L122: 1 | M122: 30 | N122: 40 | O122: 33 | P122: 38 | Q122: 10
F123: 120 | G123: 27 | H123: 21 | I123: ↓ | K123: 1120 | L123: 1 | M123: 30 | N123: 51 | O123: 30 | P123: 51 | Q123: 1
F124: 121 | G124: 28 | H124: 21 | I124: ↓ | K124: 1121 | L124: 1 | M124: 30 | N124: 58 | O124: 30 | P124: 58 | Q124: 1
F125: 122 | G125: 29 | H125: 21 | I125: ↓ | K125: 1122 | L125: 1 | M125: 31 | N125: 15 | O125: 31 | P125: 15 | Q125: 1
F126: 123 | G126: 30 | H126: 21 | I126: ↓ | K126: 1123 | L126: 1 | M126: 31 | N126: 25 | O126: 33 | P126: 24 | Q126: 6
F127: 124 | G127: 31 | H127: 21 | I127: → | K127: 1124 | L127: 1 | M127: 31 | N127: 29 | O127: 33 | P127: 29 | Q127: 5
F128: 125 | G128: 31 | H128: 22 | I128: ↓ | K128: 1125 | L128: 1 | M128: 31 | N128: 38 | O128: 31 | P128: 39 | Q128: 2
F129: 126 | G129: 32 | H129: 22 | I129: ↓ | K129: 1126 | L129: 1 | M129: 31 | N129: 55 | O129: 31 | P129: 56 | Q129: 2
F130: 127 | G130: 33 | H130: 22 | I130: ← | K130: 1127 | L130: 1 | M130: 32 | N130: 11 | O130: 32 | P130: 12 | Q130: 2
F131: 128 | G131: 33 | H131: 21 | I131: ← | K131: 1128 | L131: 1 | M131: 32 | N131: 21 | O131: 32 | P131: 21 | Q131: 1
F132: 129 | G132: 33 | H132: 20 | I132: ↑ | K132: 1129 | L132: 1 | M132: 32 | N132: 37 | O132: 32 | P132: 37 | Q132: 1
F133: 130 | G133: 32 | H133: 20 | I133: ↑ | K133: 1130 | L133: 1 | M133: 32 | N133: 41 | O133: 33 | P133: 42 | Q133: 3
F134: =F133+1 -> 131 | G134: 31 | H134: 20 | I134: ← | K134: 1131 | L134: 1 | M134: 32 | N134: 45 | O134: 33 | P134: 45 | Q134: 2
F135: 132 | G135: 31 | H135: 19 | I135: ↓ | K135: 1132 | L135: 1 | M135: 33 | N135: 16 | O135: 33 | P135: 16 | Q135: 1
F136: 133 | G136: 32 | H136: 19 | I136: ↓ | K136: 1133 | L136: 1 | M136: 33 | N136: 25 | O136: 33 | P136: 25 | Q136: 1
F137: 134 | G137: 33 | H137: 19 | I137: ← | K137: 1134 | L137: 1 | M137: 33 | N137: 39 | O137: 33 | P137: 40 | Q137: 2
F138: 135 | G138: 33 | H138: 18 | I138: ←
F139: 136 | G139: 33 | H139: 17 | I139: ↑
F140: 137 | G140: 32 | H140: 17 | I140: ←
F141: 138 | G141: 32 | H141: 16 | I141: ↑
F142: 139 | G142: 31 | H142: 16 | I142: ↑
F143: 140 | G143: 30 | H143: 16 | I143: ←
F144: 141 | G144: 30 | H144: 15 | I144: ↑
F145: 142 | G145: 29 | H145: 15 | I145: ←
F146: 143 | G146: 29 | H146: 14 | I146: ↓
F147: 144 | G147: 30 | H147: 14 | I147: ↓
F148: 145 | G148: 31 | H148: 14 | I148: ←
F149: 146 | G149: 31 | H149: 13 | I149: ↓
F150: 147 | G150: 32 | H150: 13 | I150: →
F151: 148 | G151: 32 | H151: 14 | I151: →
F152: 149 | G152: 32 | H152: 15 | I152: ↓
F153: 150 | G153: 33 | H153: 15 | I153: ←
F154: 151 | G154: 33 | H154: 14 | I154: ←
F155: 152 | G155: 33 | H155: 13 | I155: ←
F156: 153 | G156: 33 | H156: 12 | I156: ←
F157: 154 | G157: 33 | H157: 11 | I157: ←
F158: 155 | G158: 33 | H158: 10 | I158: ↑
F159: 156 | G159: 32 | H159: 10 | I159: ↑
F160: 157 | G160: 31 | H160: 10 | I160: ↑
F161: 158 | G161: 30 | H161: 10 | I161: →
F162: 159 | G162: 30 | H162: 11 | I162: ↓
F163: 160 | G163: 31 | H163: 11 | I163: →
F164: 161 | G164: 31 | H164: 12 | I164: ↑
F165: 162 | G165: 30 | H165: 12 | I165: ↑
F166: 163 | G166: 29 | H166: 12 | I166: ↑
F167: 164 | G167: 28 | H167: 12 | I167: ←
F168: 165 | G168: 28 | H168: 11 | I168: ↑
F169: 166 | G169: 27 | H169: 11 | I169: ←
F170: 167 | G170: 27 | H170: 10 | I170: ↑
F171: 168 | G171: 26 | H171: 10 | I171: →
F172: 169 | G172: 26 | H172: 11 | I172: →
F173: 170 | G173: 26 | H173: 12 | I173: ↑
F174: 171 | G174: 25 | H174: 12 | I174: →
F175: 172 | G175: 25 | H175: 13 | I175: ↓
F176: 173 | G176: 26 | H176: 13 | I176: →
F177: 174 | G177: 26 | H177: 14 | I177: ↓
F178: 175 | G178: 27 | H178: 14 | I178: ↓
F179: 176 | G179: 28 | H179: 14 | I179: →
F180: 177 | G180: 28 | H180: 15 | I180: ↑
F181: 178 | G181: 27 | H181: 15 | I181: →
F182: 179 | G182: 27 | H182: 16 | I182: ↑
F183: 180 | G183: 26 | H183: 16 | I183: ←
F184: 181 | G184: 26 | H184: 15 | I184: ↑
F185: 182 | G185: 25 | H185: 15 | I185: ←
F186: 183 | G186: 25 | H186: 14 | I186: ↑
F187: 184 | G187: 24 | H187: 14 | I187: →
F188: 185 | G188: 24 | H188: 15 | I188: ↑
F189: 186 | G189: 23 | H189: 15 | I189: →
F190: 187 | G190: 23 | H190: 16 | I190: →
F191: 188 | G191: 23 | H191: 17 | I191: ↑
F192: 189 | G192: 22 | H192: 17 | I192: ↑
F193: 190 | G193: 21 | H193: 17 | I193: →
F194: 191 | G194: 21 | H194: 18 | I194: ↓
F195: 192 | G195: 22 | H195: 18 | I195: ↓
F196: 193 | G196: 23 | H196: 18 | I196: →
F197: 194 | G197: 23 | H197: 19 | I197: ↑
F198: =F197+1 -> 195 | G198: 22 | H198: 19 | I198: →
F199: 196 | G199: 22 | H199: 20 | I199: ↓
F200: 197 | G200: 23 | H200: 20 | I200: →
... 2303 more rows
